bitfinex-derivatives/quotes_BTCF0:USTF0_20251110
["timestamp","ask_amount","ask_price","bid_price","bid_amount"]
[1762784854688,0.00123519,106290.0,106280.0,0.34469125]
[1762784855490,0.15033325,106290.0,106280.0,0.34469125]
[1762784856784,0.10589325,106290.0,106280.0,0.34469125]
[1762784856981,0.00123519,106290.0,106280.0,0.34469125]
[1762784857991,0.00123519,106290.0,106280.0,0.22690077]
[1762784860189,0.10589325,106290.0,106280.0,0.22690077]
[1762784860387,0.25499131,106290.0,106280.0,0.22690077]
[1762784860588,0.34909701,106290.0,106280.0,0.14268639]
[1762784860797,0.35944701,106290.0,106280.0,0.12980639]
[1762784861094,0.35944701,106290.0,106280.0,0.04522803]
[1762784862584,0.35944701,106290.0,106280.0,0.00219803]
[1762784862789,0.35944701,106290.0,106280.0,0.06987034]
[1762784863886,0.35944701,106290.0,106280.0,0.11581034]
[1762784864087,0.35944701,106290.0,106280.0,0.09289034]
[1762784865389,0.35944701,106290.0,106280.0,0.06987034]
[1762784865594,0.1482146,106280.0,106270.0,0.0678134]
[1762784865786,0.25287266,106280.0,106270.0,0.06781503]
[1762784867291,0.25287266,106280.0,106270.0,0.11795306]
[1762784867589,0.25287266,106280.0,106270.0,0.21207656]
[1762784867997,0.25287266,106280.0,106270.0,0.13121306]
[1762784868996,0.25287266,106280.0,106270.0,0.22533656]
[1762784870288,0.14909806,106280.0,106270.0,0.22533656]
[1762784870491,0.14779325,106290.0,106280.0,0.1513546]
[1762784870696,0.24189905,106290.0,106280.0,0.22113948]
[1762784871800,0.24289905,106290.0,106280.0,0.22113948]
[1762784872786,0.24289905,106290.0,106280.0,0.12702488]
[1762784872986,0.85475708,106290.0,106280.0,0.02923298]
[1762784873188,0.0941323,106260.0,106250.0,0.0138]
[1762784873487,0.63208645,106260.0,106250.0,0.01453267]
[1762784874499,0.63208645,106260.0,106250.0,0.04130267]
[1762784875005,0.63208645,106260.0,106250.0,0.04430267]
[1762784875500,0.63208645,106260.0,106250.0,0.06727267]
[1762784878496,0.30564645,106260.0,106250.0,0.06727267]
[1762784878702,0.63204645,106260.0,106250.0,0.06727267]
[1762784879404,0.63200645,106260.0,106250.0,0.06727267]
[1762784880305,0.0941412,106250.0,106240.0,0.00014109]
[1762784880612,0.0941501,106240.0,106230.0,0.03636]
[1762784880809,0.63214425,106240.0,106230.0,0.03636]
[1762784881005,0.73715793,106240.0,106230.0,0.03636]
[1762784881199,0.73715793,106240.0,106230.0,0.01359]
[1762784881807,0.73715793,106240.0,106230.0,0.03636]
[1762784882217,0.73715793,106240.0,106230.0,0.05933]
[1762784882706,0.73715793,106240.0,106220.0,0.02674932]
[1762784882926,0.61710736,106230.0,106220.0,0.01368406]
[1762784883101,0.61930539,106230.0,106220.0,0.01368406]
[1762784883603,0.61930539,106230.0,106220.0,9.406e-05]
[1762784884299,0.0941678,106220.0,106210.0,0.07266691]
[1762784884499,0.19462006,106220.0,106210.0,0.07339958]
[1762784884905,0.19462006,106220.0,106210.0,0.06017007]
[1762784885401,0.19462006,106220.0,106210.0,0.07351022]
[1762784886310,0.19462006,106220.0,106210.0,0.06017007]
[1762784886509,0.19462006,106220.0,106210.0,0.06317007]
[1762784887196,0.19462006,106220.0,106210.0,0.06517007]
[1762784887398,0.19462006,106220.0,106210.0,0.01943007]
[1762784888705,0.0941767,106210.0,106200.0,0.027255]
[1762784888911,0.61956319,106210.0,106200.0,0.02798767]
[1762784889218,0.61956319,106210.0,106200.0,0.07372767]
[1762784889417,0.52130896,106210.0,106200.0,0.07372767]
[1762784889604,0.61956319,106210.0,106200.0,0.07372767]
[1762784889807,0.5213935,106210.0,106200.0,0.07372767]
[1762784890214,0.1947135,106210.0,106200.0,0.07372767]
[1762784890409,0.5233935,106210.0,106200.0,0.07372767]
[1762784890717,0.5253935,106210.0,106200.0,0.07372767]
[1762784891215,0.1987135,106210.0,106200.0,0.16791327]
[1762784891415,0.5253535,106210.0,106200.0,0.16791327]
[1762784891818,0.4311768,106210.0,106200.0,0.16791327]
[1762784892015,0.5253535,106210.0,106200.0,0.16791327]
[1762784892222,0.1987135,106210.0,106200.0,0.07372767]
[1762784892418,0.5253535,106210.0,106200.0,0.16791327]
[1762784893226,0.1045368,106210.0,106200.0,0.16791327]
[1762784893520,0.5253535,106210.0,106200.0,0.16791327]
[1762784894311,0.1045368,106210.0,106200.0,0.16791327]
[1762784894510,0.00628257,106210.0,106200.0,0.16791327]
[1762784894713,0.00014109,106230.0,106210.0,0.1535067]
[1762784894914,0.17825912,106230.0,106220.0,0.15423047]
[1762784895116,0.10059335,106230.0,106220.0,0.15423047]
[1762784895828,0.19475235,106230.0,106220.0,0.15423047]
[1762784896026,0.19875235,106230.0,106220.0,0.15423047]
[1762784896726,0.19875235,106230.0,106220.0,0.15523047]
[1762784896922,0.20275235,106230.0,106220.0,0.15523047]
[1762784897321,0.01033912,106230.0,106220.0,0.15523047]
[1762784897922,0.29881423,106250.0,106240.0,0.1534801]
[1762784898124,0.29881423,106250.0,106240.0,0.15421277]
[1762784898125,0.30101226,106250.0,106240.0,0.15421277]
[1762784899324,0.30701226,106250.0,106240.0,0.15421277]
[1762784900123,0.10045226,106250.0,106240.0,0.15521277]
[1762784901530,0.10145226,106250.0,106240.0,0.15521277]
[1762784901929,0.10145226,106250.0,106240.0,0.15421277]
[1762784902331,0.00319803,106250.0,106240.0,0.15421277]
[1762784902527,0.001,106250.0,106240.0,0.15421277]
[1762784903123,0.001,106250.0,106240.0,0.15521277]
[1762784903832,0.00219803,106250.0,106240.0,0.15521277]
[1762784904020,0.09633933,106250.0,106240.0,0.15521277]
[1762784904223,0.19459356,106250.0,106240.0,0.15521277]
[1762784905235,0.19459356,106250.0,106240.0,0.06106267]
[1762784907123,0.19459356,106250.0,106240.0,0.15521287]
[1762784908328,0.10045226,106250.0,106240.0,0.15521287]
[1762784909229,0.00219803,106250.0,106240.0,0.15521287]
[1762784909535,0.10045226,106250.0,106240.0,0.15521287]
[1762784910035,0.19459356,106250.0,106240.0,0.06106267]
[1762784910236,0.19459356,106250.0,106240.0,0.15521287]
[1762784912331,0.09633933,106250.0,106240.0,0.15521287]
[1762784912526,0.19459356,106250.0,106240.0,0.15521287]
[1762784912929,0.20105529,106250.0,106240.0,0.15521287]
[1762784914038,0.30577125,106250.0,106240.0,0.06106267]
[1762784914940,0.19453599,106250.0,106240.0,0.06106267]
[1762784917038,0.52073599,106250.0,106240.0,0.001]
[1762784917240,0.29273265,106250.0,106240.0,0.001]
[1762784917833,0.0941502,106240.0,106230.0,0.00014109]
[1762784918042,0.29274155,106240.0,106230.0,0.00014109]
[1762784918238,0.61894155,106240.0,106230.0,0.00014109]
[1762784919036,0.61894155,106240.0,106230.0,0.00214109]
[1762784920144,0.61894155,106240.0,106230.0,0.00414109]
[1762784924449,0.61894155,106240.0,106230.0,0.06275376]
[1762784926550,0.19454489,106240.0,106230.0,0.06275376]
[1762784926846,0.52058489,106240.0,106230.0,0.06275376]
[1762784928549,0.61878155,106240.0,106230.0,0.06275376]
[1762784928848,0.52058489,106240.0,106230.0,0.06275376]
[1762784929648,0.61874155,106240.0,106230.0,0.00414109]
[1762784930638,0.42234823,106240.0,106230.0,0.01781109]
[1762784930839,0.61874155,106240.0,106230.0,0.04049376]
[1762784931041,0.61874155,106240.0,106230.0,0.06271376]
[1762784933738,0.29274155,106240.0,106230.0,0.06271376]
[1762784933945,0.61866155,106240.0,106230.0,0.06271376]
[1762784934953,0.73658171,106240.0,106230.0,0.06271376]
[1762784937255,0.41066171,106240.0,106230.0,0.06271376]
[1762784937552,0.73654171,106240.0,106230.0,0.06271376]
[1762784937749,0.41066171,106240.0,106230.0,0.06271376]
[1762784937952,0.73650171,106240.0,106230.0,0.06271376]
[1762784938152,0.41066171,106240.0,106230.0,0.06271376]
[1762784938353,0.73650171,106240.0,106230.0,0.06271376]
[1762784938552,0.73646171,106240.0,106230.0,0.06271376]
[1762784940657,0.41066171,106240.0,106230.0,0.06271376]
[1762784940852,0.52687809,106240.0,106230.0,0.06271376]
[1762784941157,0.63164795,106240.0,106230.0,0.06271376]
[1762784945256,0.00219803,106240.0,106230.0,0.15687296]
[1762784945558,0.10696789,106240.0,106230.0,0.24145132]
[1762784945947,0.20111819,106240.0,106230.0,0.24145132]
[1762784946149,0.30588805,106240.0,106230.0,0.14729212]
[1762784946355,0.30588805,106240.0,106230.0,0.06271376]
[1762784947154,0.30588805,106240.0,106230.0,0.04049376]
[1762784947355,0.63164805,106240.0,106230.0,0.04049376]
[1762784947557,0.63164805,106240.0,106230.0,0.06344376]
[1762784948053,0.20111819,106240.0,106230.0,0.15760296]
[1762784948358,0.52687819,106240.0,106230.0,0.15760296]
[1762784949252,0.20111819,106240.0,106230.0,0.15760296]
[1762784949459,0.52687819,106240.0,106230.0,0.15760296]
[1762784950061,0.43272789,106240.0,106230.0,0.15760296]
[1762784950456,0.20111819,106240.0,106230.0,0.06344376]
[1762784950859,0.30588805,106240.0,106230.0,0.06344376]
[1762784953662,0.30588805,106240.0,106230.0,0.00487376]
[1762784954562,0.30588805,106240.0,106230.0,0.06273376]
[1762784955146,0.30588805,106240.0,106230.0,0.15689296]
[1762784955363,0.30588805,106240.0,106230.0,0.06273376]
[1762784956361,0.30588805,106240.0,106230.0,0.01866376]
[1762784956556,0.30588805,106240.0,106230.0,0.00487376]
[1762784957360,0.09634833,106240.0,106230.0,0.00487376]
[1762784957558,0.30588805,106240.0,106230.0,0.00487376]
[1762784957756,0.63160805,106240.0,106230.0,0.03978376]
[1762784958058,0.63160805,106240.0,106230.0,0.06273376]
[1762784963166,0.30588805,106240.0,106230.0,0.03978376]
[1762784963362,0.30588805,106240.0,106230.0,0.06185376]
[1762784964054,0.63160805,106240.0,106230.0,0.06185376]
[1762784964252,0.0941592,106230.0,106220.0,0.05708]
[1762784964566,0.30589695,106230.0,106220.0,0.05708]
[1762784965756,0.30589695,106230.0,106220.0,0.06308]
[1762784967262,0.1392468,106210.0,106200.0,0.22912829]
[1762784967467,0.24621469,106210.0,106200.0,0.15459336]
[1762784968467,0.15203789,106210.0,106200.0,0.25277896]
[1762784968762,0.15203789,106210.0,106200.0,0.25777896]
[1762784970357,0.15203789,106210.0,106200.0,0.1732006]
[1762784970760,0.24621469,106210.0,106200.0,0.1732006]
[1762784971163,0.15203789,106210.0,106200.0,0.1732006]
[1762784971358,0.24621469,106210.0,106200.0,0.17442144]
[1762784973061,0.15203789,106210.0,106200.0,0.17442144]
[1762784973459,0.04521109,106220.0,106210.0,0.1505168]
[1762784973664,0.24634708,106220.0,106210.0,0.1505168]
[1762784974259,0.24634708,106220.0,106210.0,0.15173764]
[1762784974660,0.24634708,106220.0,106210.0,0.15473764]
[1762784974861,0.24634708,106220.0,106210.0,0.06056084]
[1762784975464,0.24917708,106220.0,106210.0,0.05171084]
[1762784978158,0.24917708,106220.0,106210.0,0.00822084]
[1762784979670,0.24917708,106220.0,106210.0,0.00422084]
[1762784980568,0.25217708,106220.0,106210.0,0.00422084]
[1762784980968,0.25317708,106220.0,106210.0,0.00122084]
[1762784981675,0.25217708,106220.0,106210.0,0.00122084]
[1762784981874,0.25517708,106220.0,106210.0,0.00122084]
[1762784982266,0.25517708,106220.0,106200.0,0.01138584]
[1762784982568,0.56601259,106210.0,106200.0,0.1376757]
[1762784982774,0.56821062,106210.0,106200.0,0.16215839]
[1762784984172,0.47779789,106210.0,106200.0,0.16215839]
[1762784984580,0.57397479,106210.0,106200.0,0.16215839]
[1762784984771,0.57397479,106210.0,106200.0,0.06797269]
[1762784985175,0.57597479,106210.0,106200.0,0.16215839]
[1762784985574,0.25021479,106210.0,106200.0,0.16215839]
[1762784985774,0.57597479,106210.0,106200.0,0.16215839]
[1762784985974,0.25021479,106210.0,106200.0,0.16215839]
[1762784986175,0.57597479,106210.0,106200.0,0.16215839]
[1762784987075,0.15603789,106210.0,106200.0,0.16215839]
[1762784987276,0.11096789,106210.0,106200.0,0.16215839]
[1762784987473,0.11096789,106210.0,106200.0,0.24673675]
[1762784987674,0.13338789,106210.0,106200.0,0.24673675]
[1762784987874,0.15603789,106210.0,106200.0,0.24673675]
[1762784988270,0.25304469,106210.0,106200.0,0.24673675]
[1762784988578,0.24621469,106210.0,106200.0,0.24673675]
[1762784988781,0.24721469,106210.0,106200.0,0.24673675]
[1762784988980,0.24721469,106210.0,106200.0,0.16215839]
[1762784989180,0.15303789,106210.0,106200.0,0.16215839]
[1762784989371,0.24721469,106210.0,106200.0,0.16215839]
[1762784989574,0.24721469,106210.0,106200.0,0.24673675]
[1762784989875,0.15303789,106210.0,106200.0,0.24673675]
[1762784990080,0.00319803,106210.0,106200.0,0.24673675]
[1762784990280,0.12802294,106210.0,106200.0,0.24893478]
[1762784990471,0.14975294,106210.0,106200.0,0.24893478]
[1762784991080,0.12729027,106210.0,106200.0,0.24893478]
[1762784991281,0.14902027,106210.0,106200.0,0.24893478]
[1762784991682,0.12729027,106210.0,106200.0,0.24893478]
[1762784992976,0.00058041,106210.0,106200.0,0.24893478]
[1762784993581,0.00014109,106220.0,106210.0,0.1515168]
[1762784993784,0.00014109,106220.0,106210.0,0.57849153]
[1762784994082,0.10491095,106220.0,106210.0,0.38907483]
[1762784994286,0.00014109,106220.0,106210.0,0.38907483]
[1762784994882,0.00114109,106220.0,106210.0,0.38907483]
[1762784995484,0.00114109,106220.0,106210.0,0.15371483]
[1762784996076,0.00114109,106220.0,106210.0,0.27173976]
[1762784996276,0.00114109,106220.0,106210.0,0.35635871]
[1762784996477,0.00114109,106220.0,106210.0,0.23833378]
[1762784997584,0.00014109,106220.0,106210.0,0.24033378]
[1762784998286,0.12689095,106220.0,106210.0,0.24033378]
[1762784998484,0.10491095,106220.0,106210.0,0.24033378]
[1762784999182,0.10114607,106220.0,106210.0,0.23683378]
[1762784999388,0.10476986,106230.0,106220.0,0.1515049]
[1762784999585,0.12748253,106230.0,106220.0,0.23832188]
[1762784999784,0.14895253,106230.0,106220.0,0.15370293]
[1762785000492,0.24311163,106230.0,106220.0,0.23832188]
[1762785000684,0.04518267,106230.0,106220.0,0.23832188]
[1762785000883,0.24410045,106230.0,106220.0,0.23832188]
[1762785001077,0.25676045,106230.0,106220.0,0.23832188]
[1762785001389,0.00173267,106230.0,106220.0,0.23832188]
[1762785001590,0.14994135,106230.0,106220.0,0.23832188]
[1762785001794,0.13934177,106230.0,106220.0,0.23832188]
[1762785002087,0.04518267,106230.0,106220.0,0.31187488]
[1762785002491,0.001,106230.0,106220.0,0.67213329]
[1762785002684,0.10489977,106240.0,106230.0,0.1514991]
[1762785002989,0.10489977,106240.0,106230.0,0.34307476]
[1762785003188,0.30380865,106240.0,106230.0,0.23831608]
[1762785003486,0.36065132,106240.0,106230.0,0.22491608]
[1762785003693,0.36065132,106240.0,106230.0,0.14029713]
[1762785003884,0.36065132,106240.0,106230.0,0.15369713]
[1762785004093,0.34799132,106240.0,106230.0,0.15369713]
[1762785004590,0.34799132,106240.0,106230.0,0.15469713]
[1762785005084,0.34899132,106240.0,106230.0,0.15369713]
[1762785005284,0.36165132,106240.0,106230.0,0.15369713]
[1762785005691,0.46641,106240.0,106230.0,0.00219803]
[1762785006388,0.150278,106220.0,106210.0,0.05748109]
[1762785006591,0.150278,106220.0,106210.0,0.00233912]
[1762785006592,0.46528671,106220.0,106210.0,0.00233912]
[1762785006892,0.36052803,106220.0,106210.0,0.15385592]
[1762785007091,0.46528671,106220.0,106210.0,0.00014109]
[1762785007390,0.36052803,106220.0,106210.0,0.00233912]
[1762785007691,0.36052803,106220.0,106210.0,0.02499912]
[1762785007887,0.46528671,106220.0,106210.0,0.00514109]
[1762785008585,0.36052803,106220.0,106210.0,0.05127912]
[1762785008790,0.68620803,106220.0,106210.0,0.05127912]
[1762785008989,0.68620803,106220.0,106210.0,0.00733912]
[1762785009291,0.79096671,106220.0,106210.0,0.00733912]
[1762785009797,0.79096671,106220.0,106210.0,0.00214109]
[1762785010095,0.79096671,106220.0,106210.0,1e-08]
[1762785010888,1.39096671,106220.0,106210.0,1e-08]
[1762785011095,0.35387196,106190.0,106180.0,0.12855895]
[1762785011395,0.35460463,106190.0,106180.0,0.14034143]
[1762785011584,0.15565135,106190.0,106180.0,0.15374143]
[1762785011788,0.53181738,106200.0,106190.0,0.04394]
[1762785011789,0.24906438,106200.0,106190.0,0.04394]
[1762785011987,0.35455573,106200.0,106190.0,0.00219803]
[1762785012994,0.45931441,106200.0,106190.0,0.00330932]
[1762785014099,0.45931441,106200.0,106190.0,0.00311129]
[1762785014295,0.14503837,106200.0,106190.0,0.04924932]
[1762785014501,0.35455573,106200.0,106190.0,0.05224932]
[1762785015203,0.35455573,106200.0,106190.0,0.00830932]
[1762785015507,0.45931441,106200.0,106190.0,0.00830932]
[1762785016100,0.35455573,106200.0,106190.0,0.12516392]
[1762785016308,0.35455573,106200.0,106190.0,0.14644392]
[1762785016804,0.35455573,106200.0,106190.0,0.05224932]
[1762785017301,0.68083573,106200.0,106190.0,0.14294392]
[1762785017497,0.67707014,106200.0,106190.0,0.04874932]
[1762785017689,0.67707014,106200.0,106190.0,0.14294392]
[1762785018192,0.67707014,106200.0,106190.0,0.04874932]
[1762785018394,0.67707014,106200.0,106190.0,0.14294392]
[1762785018695,0.67707014,106200.0,106190.0,0.15634392]
[1762785019295,0.25660444,106200.0,106190.0,0.15634392]
[1762785019496,0.34412014,106200.0,106190.0,0.15634392]
[1762785019695,0.24993444,106200.0,106190.0,0.15634392]
[1762785019908,0.04440109,106210.0,106200.0,0.1508157]
[1762785020105,0.00014109,106210.0,106200.0,0.2573837]
[1762785020306,0.20941454,106220.0,106210.0,0.1508068]
[1762785020606,0.31529459,106220.0,106210.0,0.15261612]
[1762785021098,0.31529119,106220.0,106210.0,0.15261612]
[1762785021305,0.22112319,106220.0,106210.0,0.15261612]
[1762785021693,0.00014109,106230.0,106220.0,0.150798]
[1762785021905,0.04426,106250.0,106240.0,0.1507802]
[1762785022097,0.15014005,106250.0,106240.0,0.15258952]
[1762785022604,0.38453,106270.0,106260.0,0.1507624]
[1762785022808,0.15014005,106270.0,106260.0,0.15257172]
[1762785023109,0.00112137,106270.0,106260.0,0.15257172]
[1762785023308,0.14251233,106280.0,106270.0,0.1371636]
[1762785023505,0.2377484,106280.0,106270.0,0.04484932]
[1762785023707,0.2377484,106280.0,106270.0,0.00180932]
[1762785023911,0.1510524,106260.0,106250.0,0.02193109]
[1762785024107,0.34839625,106260.0,106250.0,0.00195041]
[1762785024404,0.34839625,106260.0,106250.0,0.00014109]
[1762785025109,0.34839625,106260.0,106250.0,0.00195041]
[1762785025310,0.34839625,106260.0,106250.0,0.00014109]
[1762785025500,0.34839625,106260.0,106250.0,0.00195041]
[1762785026106,0.34839625,106260.0,106250.0,0.00395041]
[1762785026408,0.34839625,106260.0,106250.0,0.04699041]
[1762785026808,0.35339625,106260.0,106250.0,0.02374041]
[1762785027010,0.68007625,106260.0,106250.0,0.00195041]
[1762785027406,0.67907625,106260.0,106250.0,0.00195041]
[1762785027606,0.67907625,106260.0,106250.0,0.00014109]
[1762785029504,0.67907625,106260.0,106250.0,0.00195041]
[1762785029707,0.67907625,106260.0,106250.0,0.00014109]
[1762785029902,0.1384101,106240.0,106230.0,8.326e-05]
[1762785030206,0.25121271,106240.0,106230.0,0.00189258]
[1762785030407,0.00112137,106240.0,106230.0,0.13909158]
[1762785030608,0.14237124,106250.0,106240.0,0.05663]
[1762785030804,0.23763391,106250.0,106240.0,0.15258942]
[1762785031209,0.14349261,106250.0,106240.0,0.15258942]
[1762785031600,0.23763391,106250.0,106240.0,0.05843932]
[1762785031904,0.14349261,106250.0,106240.0,0.15258942]
[1762785032101,0.23763391,106250.0,106240.0,0.05843932]
[1762785032300,0.23763391,106250.0,106240.0,0.00180932]
[1762785032812,0.1519801,106240.0,106230.0,0.00122435]
[1762785033000,0.25121271,106240.0,106230.0,0.00303367]
[1762785033199,0.15310147,106240.0,106230.0,0.04607367]
[1762785033399,0.14349261,106240.0,106230.0,0.14023267]
[1762785033614,0.25121271,106240.0,106230.0,0.04507367]
[1762785033812,0.25121271,106240.0,106230.0,0.13923267]
[1762785034113,0.25221271,106240.0,106230.0,0.13923267]
[1762785034710,0.25221271,106240.0,106230.0,0.00203367]
[1762785035014,0.25221271,106240.0,106230.0,0.02382367]
[1762785035408,0.35032395,106240.0,106230.0,0.00203367]
[1762785035816,0.25221271,106240.0,106230.0,0.00203367]
[1762785036108,0.35032395,106240.0,106230.0,0.00203367]
[1762785036313,0.35032395,106240.0,106230.0,0.00022435]
[1762785036508,0.67704395,106240.0,106230.0,0.00022435]
[1762785036908,0.57893271,106240.0,106230.0,0.00203367]
[1762785037505,0.67704395,106240.0,106230.0,0.00203367]
[1762785037707,0.67704395,106240.0,106230.0,0.00022435]
[1762785038019,0.1384367,106210.0,106200.0,0.05663]
[1762785038206,0.23766931,106210.0,106200.0,0.05843932]
[1762785038406,0.23766931,106210.0,106200.0,0.04484932]
[1762785038608,0.23766931,106210.0,106200.0,0.00180932]
[1762785039206,0.04426,106190.0,106180.0,0.16252358]
[1762785039413,0.14349261,106190.0,106180.0,0.1643329]
[1762785039716,0.23768711,106190.0,106180.0,0.1643329]
[1762785039908,0.14349261,106190.0,106180.0,0.1643329]
[1762785040407,0.14349261,106190.0,106180.0,0.2412741]
[1762785041002,0.00212137,106190.0,106180.0,0.2462741]
[1762785041414,0.001,106190.0,106180.0,0.4817141]
[1762785041608,0.001,106190.0,106180.0,0.4877141]
[1762785042115,0.001,106190.0,106180.0,0.2522741]
[1762785042515,0.001,106190.0,106180.0,0.4877141]
[1762785043014,0.001,106190.0,106180.0,0.58582534]
[1762785043316,0.00014109,106200.0,106190.0,0.1372345]
[1762785043520,0.00126246,106200.0,106190.0,0.37444382]
[1762785043712,0.00126246,106200.0,106190.0,0.13904382]
[1762785044204,0.1436337,106200.0,106190.0,0.13904382]
[1762785044410,0.2378193,106200.0,106190.0,0.13904382]
[1762785045212,0.2378193,106200.0,106190.0,0.14404382]
[1762785045406,0.2512893,106200.0,106190.0,0.14404382]
[1762785045613,0.2512893,106200.0,106190.0,0.14804382]
[1762785045821,0.2378193,106200.0,106190.0,0.14804382]
[1762785046117,0.2378193,106200.0,106190.0,0.05384932]
[1762785046316,0.34940054,106200.0,106190.0,0.01080932]
[1762785046508,0.2512893,106200.0,106190.0,0.01080932]
[1762785047619,0.34940054,106200.0,106190.0,0.009]
[1762785048518,0.25521494,106200.0,106190.0,0.009]
[1762785048717,0.25521494,106200.0,106190.0,0.01080932]
[1762785048913,0.25521494,106200.0,106190.0,0.00580932]
[1762785049220,0.1571037,106200.0,106190.0,0.02563932]
[1762785049422,0.25721494,106200.0,106190.0,0.00280932]
[1762785049820,0.25921494,106200.0,106190.0,0.00180932]
[1762785050408,0.1611037,106200.0,106190.0,0.00180932]
[1762785050614,0.1476337,106200.0,106190.0,0.04611932]
[1762785051215,0.1605337,106200.0,106190.0,0.04611932]
[1762785051812,0.1585337,106200.0,106190.0,0.04611932]
[1762785052019,0.1565337,106200.0,106190.0,0.04611932]
[1762785052218,0.1575337,106200.0,106190.0,0.04611932]
[1762785052419,0.1446337,106200.0,106190.0,0.04611932]
[1762785053116,0.1575337,106200.0,106190.0,0.04611932]
[1762785053520,0.25564494,106200.0,106190.0,0.00180932]
[1762785054612,0.1575337,106200.0,106190.0,0.00180932]
[1762785054816,0.25564494,106200.0,106190.0,0.00180932]
[1762785055423,0.1575337,106200.0,106190.0,0.04782932]
[1762785056420,0.25564494,106200.0,106190.0,0.00180932]
[1762785056627,0.0545237,106190.0,106180.0,0.0100042]
[1762785056820,0.04893,106180.0,106170.0,0.13505445]
[1762785057023,0.14923927,106180.0,106170.0,0.13505445]
[1762785057222,0.04782803,106180.0,106170.0,0.13505445]
[1762785057416,0.02517803,106180.0,106170.0,0.13505445]
[1762785057927,0.02517803,106180.0,106170.0,0.14625826]
[1762785058330,0.04782803,106180.0,106170.0,0.14625826]
[1762785058726,0.14593927,106180.0,106170.0,0.14625826]
[1762785059131,0.14601835,106180.0,106170.0,0.07467381]
[1762785060324,0.00227711,106180.0,106170.0,0.07467381]
[1762785060528,0.04790711,106180.0,106170.0,0.07467381]
[1762785060723,0.14601835,106180.0,106170.0,0.07467381]
[1762785061126,0.15878835,106180.0,106170.0,0.06122381]
[1762785061429,0.00227711,106180.0,106170.0,0.07467381]
[1762785061630,0.00227711,106180.0,106170.0,0.17278505]
[1762785061631,7.908e-05,106180.0,106170.0,0.17278505]
[1762785061828,0.14388233,106200.0,106190.0,0.04602]
[1762785062024,0.2441916,106200.0,106180.0,0.01345]
[1762785062331,0.14374124,106190.0,106180.0,0.05947]
[1762785062528,0.14593927,106190.0,106180.0,0.05947]
[1762785063033,0.00219803,106190.0,106180.0,0.05947]
[1762785063233,0.00219803,106190.0,106180.0,0.06047]
[1762785063425,0.21052286,106200.0,106190.0,0.02302]
[1762785063626,0.21272089,106200.0,106190.0,0.02302]
[1762785063830,0.04563,106190.0,106180.0,0.06047]
[1762785064029,0.04782803,106190.0,106180.0,0.06047]
[1762785064733,0.04782803,106190.0,106180.0,0.06147]
[1762785065126,0.04782803,106190.0,106180.0,0.06047]
[1762785065327,0.04782803,106190.0,106180.0,0.06147]
[1762785066237,0.04782803,106190.0,106180.0,0.06047]
[1762785066430,0.2125798,106190.0,106180.0,0.06047]
[1762785066636,0.04782803,106190.0,106180.0,0.04702]
[1762785067328,0.2125798,106190.0,106180.0,0.001]
[1762785067531,0.04563,106180.0,106170.0,0.15529276]
[1762785067735,0.04782803,106180.0,106170.0,0.15529276]
[1762785068437,0.00219803,106180.0,106170.0,0.15529276]
[1762785068734,0.04782803,106180.0,106170.0,0.15179276]
[1762785068932,0.04479369,106180.0,106170.0,0.15599079]
[1762785069234,0.04479369,106180.0,106170.0,0.15799079]
[1762785070041,0.04577109,106200.0,106190.0,0.04602]
[1762785070228,0.04650376,106200.0,106190.0,0.04821803]
[1762785070628,0.21125553,106200.0,106190.0,0.04821803]
[1762785071837,0.21525553,106200.0,106190.0,0.04821803]
[1762785074131,0.22802553,106200.0,106190.0,0.06166803]
[1762785075634,0.22802553,106200.0,106190.0,0.00219803]
[1762785076135,0.04563,106180.0,106170.0,0.15179276]
[1762785076336,0.04636267,106180.0,106170.0,0.15399079]
[1762785076536,0.04636267,106180.0,106170.0,0.24820279]
[1762785076730,0.14056577,106180.0,106170.0,0.24820279]
[1762785076937,0.31808754,106180.0,106170.0,0.24820279]
[1762785077137,0.05913267,106180.0,106170.0,0.24820279]
[1762785077334,0.21111444,106180.0,106170.0,0.24920279]
[1762785077535,0.21111444,106180.0,106170.0,0.25020279]
[1762785078042,0.30531754,106180.0,106170.0,0.25020279]
[1762785079334,0.04636267,106180.0,106170.0,0.25020279]
[1762785079534,0.31856764,106180.0,106170.0,0.25020279]
[1762785080038,0.30531764,106180.0,106170.0,0.24670279]
[1762785080233,0.31856764,106180.0,106170.0,0.09302079]
[1762785080442,0.34223461,106180.0,106170.0,0.00840184]
[1762785080735,0.04452,106140.0,106130.0,0.05823]
[1762785080932,0.21000444,106140.0,106130.0,0.15467533]
[1762785081333,0.04525267,106140.0,106130.0,0.15467533]
[1762785081840,0.04531957,106140.0,106130.0,0.16067533]
[1762785082041,0.04631957,106140.0,106130.0,0.16567533]
[1762785082335,0.00179957,106140.0,106130.0,0.16567533]
[1762785082842,0.21107134,106140.0,106130.0,0.17681916]
[1762785083229,0.30531014,106140.0,106130.0,0.17681916]
[1762785083434,0.13955837,106140.0,106130.0,0.16781916]
[1762785083634,0.21007134,106140.0,106130.0,0.16981916]
[1762785083838,0.30431014,106140.0,106130.0,0.16981916]
[1762785085243,0.30431014,106140.0,106130.0,0.16981946]
[1762785085440,0.31756014,106140.0,106130.0,0.04027186]
[1762785085636,0.31756014,106140.0,106130.0,0.01734186]
[1762785086145,0.31756014,106140.0,106130.0,0.004]
[1762785087044,0.22332134,106140.0,106130.0,0.004]
[1762785087243,0.22332134,106140.0,106130.0,0.14472563]
[1762785087446,0.00079957,106140.0,106130.0,0.15867563]
[1762785087936,6.69e-05,106140.0,106130.0,0.15867563]
[1762785088348,0.00079957,106140.0,106130.0,0.15867563]
[1762785088536,6.69e-05,106140.0,106130.0,0.15867563]
[1762785089547,6.69e-05,106140.0,106130.0,0.15667563]
[1762785089848,6.69e-05,106140.0,106130.0,0.16267563]
[1762785090147,6.69e-05,106140.0,106130.0,0.39823563]
[1762785090537,0.22332134,106140.0,106130.0,0.10444563]
[1762785090739,0.31756014,106140.0,106130.0,0.09944563]
[1762785090942,0.31756014,106140.0,106130.0,0.00619803]
[1762785091142,0.31756014,106140.0,106130.0,0.00819803]
[1762785091438,0.31379242,106140.0,106130.0,0.00469803]
[1762785091640,0.04452,106120.0,106110.0,0.1524902]
[1762785091942,0.2114698,106120.0,106110.0,0.05823]
[1762785092146,0.3160264,106120.0,106110.0,0.04428]
[1762785092349,0.2217698,106120.0,106110.0,0.1385455]
[1762785092547,0.22184292,106120.0,106110.0,0.1385455]
[1762785092752,0.21154292,106120.0,106110.0,0.1385455]
[1762785093250,0.00227115,106120.0,106110.0,0.1385455]
[1762785093440,0.00227115,106120.0,106110.0,0.1405455]
[1762785093647,0.00227115,106120.0,106110.0,0.1532928]
[1762785093842,0.00227115,106120.0,106110.0,0.1542928]
[1762785094042,0.02353115,106120.0,106110.0,0.1542928]
[1762785094247,0.22184292,106120.0,106110.0,0.1542928]
[1762785095136,0.31609952,106120.0,106110.0,0.1542928]
[1762785095644,0.31609952,106120.0,106110.0,0.004]
[1762785095844,0.31609952,106120.0,106110.0,0.003]
[1762785096049,0.1390755,106110.0,106100.0,0.0947744]